Cogmind - Beta 15 *** ADVENTURER MODE // 2025.05.23 @ 15:14:50 Player: Jack Result: Heading to fleet! Performance ------------- Evolutions (9) 4500 Regions Visited (19) 3800 Robots Destroyed (126) 630 Value Destroyed (5405) 5405 Prototype IDs (384) 7680 Alien Tech Used (11) 2200 Bonus (36692) 36692 TOTAL SCORE: 60907 Bonus ------- Triggered Max Security 2000 High Alert Combat Kills 2706 Follower Combat Kills 186 Aligned with FarCom 300 Used Core Reset Matrix 3000 Integrated Exoskeleton 5000 Destroyed MAIN.C Guards 500 Met MAIN.C 5000 Destroyed MAIN.C Shell 5000 Destroyed MAIN.C 10000 Win 3000 Cogmind --------- Core Integrity 1319/1600 Matter 425/425 Energy 698/700 System Corruption 0% +Membrane Temperature Cool (0) Movement Walking (30) Location To Fleet Rendezvous Parts ------- > --- POWER (1) -------- Reinforced Quantum Reactor > --- PROPULSION (3) --- Sigix Exoskeleton > --- UTILITY (5) ------ Microactuators Microactuators Advanced Force Field Improved Hacking Suite Improved Hacking Suite > --- WEAPON (2) ------- Sigix Broadsword > --- INVENTORY (7) ---- Advanced Reaction Control System Advanced Force Field Chronowheel Terrabomb Spacefold Activator Gamma Bomb Array Peak State ------------ > --- POWER ------------ Reinforced Quantum Reactor > --- PROPULSION ------- Sigix Exoskeleton > --- UTILITY ---------- Microactuators Microactuators Advanced Force Field Improved Hacking Suite Improved Hacking Suite > --- WEAPON ----------- Sigix Broadsword > --- INVENTORY -------- Advanced Reaction Control System Advanced Force Field Chronowheel Terrabomb Spacefold Activator Gamma Bomb Array [Rating: 231] Favorites ----------- Power Reinforced Quantum Reactor Engine Light Ion Engine Power Core Micro Nuclear Core Reactor Reinforced Quantum Reactor Propulsion Nuclear Pulse Array Leg Sigix Exoskeleton Flight Unit Nuclear Pulse Array Utility Hacking Suite Device Microactuators Processor Improved Signal Interpreter Hackware Hacking Suite Weapon Sigix Broadsword Energy Gun EM Pulse Gun Ballistic Gun Light Assault Rifle Launcher Micro-nuke Launcher Slashing Weapon Sigix Broadsword Build | -11 -10 -10 -9 -9 -9 -8 -8 -7 -7 -7 -6 -5 -4 -3 -2 -2 -2 -1 -1 ------- Run | Yrd Mat Min Mat Min Exi Min Mat Fac Was Fac Fac Fac Fac Res Res Qua Sec Acc Com Slots Evolved 18 | . . . 2 . . . 2 2 . . 2 2 2 2 2 . . 2 . Power 1 | . . . . . . . . . . . . . . . 1 . . . . Propulsion 4 | . . . 1 . . . . . . . . 1 2 . . . . . . Utility 13 | . . . 1 . . . 2 2 . . 2 1 . 2 1 . . 2 . Weapon . | . . . . . . . . . . . . . . . . . . . . Parts Attached 79 | . 2 1 2 . 1 3 2 16 . 8 4 7 3 2 11 3 9 1 4 Power 5 | . . . . . 1 . . 1 . 1 . . . . . 1 1 . . Engine 2 | . . . . . 1 . . 1 . . . . . . . . . . . Core 2 | . . . . . . . . . . 1 . . . . . 1 . . . Reactor 1 | . . . . . . . . . . . . . . . . . 1 . . Propulsion 16 | . . . 2 . . 2 2 3 . 2 1 1 1 . 2 . . . . Treads . | . . . . . . . . . . . . . . . . . . . . Leg . | . . . . . . . . . . . . . . . . . . . . Wheel . | . . . . . . . . . . . . . . . . . . . . Hover . | . . . . . . . . . . . . . . . . . . . . Flight 16 | . . . 2 . . 2 2 3 . 2 1 1 1 . 2 . . . . Utility 44 | . . . . . . . . 8 . 5 3 4 1 2 8 1 8 1 3 Device 20 | . . . . . . . . 3 . 1 1 . . 1 4 1 8 1 . Storage . | . . . . . . . . . . . . . . . . . . . . Processor 3 | . . . . . . . . 1 . . . . . 1 1 . . . . Hackware 21 | . . . . . . . . 4 . 4 2 4 1 . 3 . . . 3 Protection . | . . . . . . . . . . . . . . . . . . . . Artifact . | . . . . . . . . . . . . . . . . . . . . Weapon 14 | . 2 1 . . . 1 . 4 . . . 2 1 . 1 1 . . 1 Energy Gun 1 | . 1 . . . . . . . . . . . . . . . . . . Energy Cannon . | . . . . . . . . . . . . . . . . . . . . Ballistic Gun 2 | . 1 1 . . . . . . . . . . . . . . . . . Ballistic Cannon . | . . . . . . . . . . . . . . . . . . . . Launcher 6 | . . . . . . 1 . 1 . . . 2 . . 1 . . . 1 Special Weapon . | . . . . . . . . . . . . . . . . . . . . Impact Weapon . | . . . . . . . . . . . . . . . . . . . . Slashing Weapon 5 | . . . . . . . . 3 . . . . 1 . . 1 . . . Piercing Weapon . | . . . . . . . . . . . . . . . . . . . . Special Melee Weapon . | . . . . . . . . . . . . . . . . . . . . Unidentified Prototypes 3 | . . . . . . . . . . . . . . . . 2 1 . . Parts Lost 23 | . . . . . . . 4 1 . . . 1 2 4 5 3 2 . 1 Power 2 | . . . . . . . 1 . . . . . . . . 1 . . . Propulsion 3 | . . . . . . . 1 1 . . . . . . 1 . . . . Utility 14 | . . . . . . . . . . . . 1 2 3 4 1 2 . 1 Weapon 4 | . . . . . . . 2 . . . . . . 1 . 1 . . . Highest Loss Streak 4 | . . . . . . . 4 1 . . . 1 2 4 2 2 2 . 1 To Critical Strikes . | . . . . . . . . . . . . . . . . . . . . Average Backups 4 | 1 4 5 5 5 5 5 5 4 5 4 4 5 5 4 3 3 4 4 6 Power . | . . 1 1 1 . . . . . . . . . . . . . . . Propulsion . | . . . . . . . . . . . . . . . . . . . . Utility 1 | . . . . . . . . . 2 2 2 1 1 2 . . . 2 3 Weapon 2 | 1 4 4 4 4 4 4 4 3 2 1 1 2 2 1 1 2 1 . . Tool/Special . | . . . . . . . . . . . . . . . . . . . . Unused Backups 9 | . . . . . . . . 1 . . 2 1 . . . . 1 . 4 Power . | . . . . . . . . . . . . . . . . . . . . Propulsion 1 | . . . . . . . . . . . . . . . . . 1 . . Utility 5 | . . . . . . . . . . . 2 1 . . . . . . 2 Weapon 1 | . . . . . . . . 1 . . . . . . . . . . . Tool/Special 2 | . . . . . . . . . . . . . . . . . . . 2 Average Slot Usage (%) 66 | . 5 15 31 44 48 61 49 62 92 91 90 80 77 69 63 69 52 54 71 Engine 1 | . . . . . 4 11 7 2 7 3 . . . . . . . . . Core 1 | . . . . . . . . . . 3 6 5 5 4 4 3 . . . Reactor 2 | . . . . . . . . . . . . . . . . . 7 9 9 Leg 3 | . . . . . . . . . . . . . . . . . 8 9 9 Flight 11 | . . . 9 22 22 28 25 22 23 23 17 11 11 14 12 13 2 . . Device 13 | . . . . . . . . 6 15 15 13 11 10 10 6 7 14 27 27 Processor 2 | . . . . . . . . 1 7 7 6 5 5 6 5 8 1 . . Hackware 19 | . . . . . . . . 20 30 29 39 38 35 23 26 30 6 . 17 Ballistic Gun 1 | . 4 15 22 22 22 13 9 . . . . . . . . . . . . Slashing Weapon 5 | . . . . . . . . 5 7 7 6 5 5 4 4 3 9 9 9 Peak Build Rating 231 | . 2 2 4 4 7 8 8 44 44 47 57 79 92 93 98 116 228 227 231 Average Rating 107 | . . 1 3 4 5 7 7 23 44 44 53 64 82 87 83 93 188 222 230 On Entrance 54 | . . 1 2 4 4 7 8 5 44 44 44 57 79 83 78 85 98 222 221 Naked Turns 126 | . 126 . . . . . . . . . . . . . . . . . . Heaviest Build 60 | . 4 3 3 3 6 7 7 10 10 13 11 11 23 24 24 24 60 60 59 Greatest Support 60 | 3 3 3 8 8 8 12 12 17 17 17 19 26 39 39 44 44 60 60 60 Greatest Overweight (x) 1 | . 1 . . . . . . . . . 1 . . . . . . . . Average Overweight (x) . | . . . . . . . . . . . . . . . . . . . . Largest Inventory Capacity 7 | 5 5 5 5 5 5 5 5 5 5 5 5 5 5 5 5 5 7 7 7 Average Capacity 5 | 5 5 5 5 5 5 5 5 5 5 5 5 5 5 5 5 5 6 7 7 Most Carried 6 | 3 5 5 5 5 5 5 5 5 5 5 5 5 5 5 5 5 5 6 6 Average Carried 4 | 2 4 4 5 5 4 5 5 4 5 4 4 4 4 4 3 3 4 4 5 Final Capacity 7 | 5 5 5 5 5 5 5 5 5 5 5 5 5 5 5 5 5 7 7 7 Final Carried 6 | 3 5 5 5 5 5 5 5 5 5 5 5 5 5 4 4 5 4 6 6 Class Distribution -------------------- 32% | Alien-Sigix 24% | Wizard-Scout 13% | Hacker-Scout 11% | Mutant 8% | Wizard-Mutant 5% | Hacker-Mutant Dominant Class ---------------- Mutant | -10/Materials Mutant | -10/Mines Mutant | -9/Materials Mutant | -9/Mines Mutant | -9/Exiles Scavenger-Mutant | -8/Mines Scavenger-Mutant | -8/Materials Hacker-Mutant | -7/Factory Hacker-Scout | -7/Waste Hacker-Scout | -7/Factory Wizard-Scout | -6/Factory Wizard-Scout | -5/Factory Wizard-Scout | -4/Factory Wizard-Scout | -3/Research Wizard-Mutant | -2/Research Wizard-Scout | -2/Quarantine Alien-Sigix | -2/Section 7 Alien-Sigix | -1/Access Alien-Sigix | -1/Command Resources | -11 -10 -10 -9 -9 -9 -8 -8 -7 -7 -7 -6 -5 -4 -3 -2 -2 -2 -1 -1 ----------- Run | Yrd Mat Min Mat Min Exi Min Mat Fac Was Fac Fac Fac Fac Res Res Qua Sec Acc Com Matter Collected 1598 | . 38 . . 65 . . 229 264 . 146 . 109 64 . 88 171 200 179 45 Remotely . | . . . . . . . . . . . . . . . . . . . . Salvage Created 5447 | . 55 . 44 51 . 57 54 369 . 296 . 226 171 32 144 475 585 528 2360 Parts 305 | . 4 . 3 8 . 14 7 30 . 24 . 15 13 2 19 21 31 28 86 Haulers Intercepted 1 | . . . . . . . . 1 . . . . . . . . . . . Recyclers Shooed 1 | . . . . . . . . . . . . . 1 . . . . . . Parts Field Recycled . | . . . . . . . . . . . . . . . . . . . . Retrieved Matter . | . . . . . . . . . . . . . . . . . . . . Parts Self-Destructed . | . . . . . . . . . . . . . . . . . . . . Prevented . | . . . . . . . . . . . . . . . . . . . . Kills | -11 -10 -10 -9 -9 -9 -8 -8 -7 -7 -7 -6 -5 -4 -3 -2 -2 -2 -1 -1 ------- Run | Yrd Mat Min Mat Min Exi Min Mat Fac Was Fac Fac Fac Fac Res Res Qua Sec Acc Com Combat Hostiles Destroyed 77 | . 3 . 3 3 . 6 6 5 . 1 . 7 3 5 . 5 9 6 15 Melee 34 | . . . . . . . . 1 . 1 . 2 . . . . 9 6 15 Guns 9 | . 3 . 3 3 . . . . . . . . . . . . . . . AOE 34 | . . . . . . 6 6 4 . . . 5 3 5 . 5 . . . Classes Destroyed 17 | . 1 . . . . 2 . 6 . 1 . 1 1 . . 1 3 . 1 Worker 12 | . . . . . . 1 1 2 . 3 . 3 1 . . 1 . . . Builder 13 | . . . . . . . . 2 . 4 . . . . 4 2 . 1 . Tunneler 2 | . . . . . . 1 . 1 . . . . . . . . . . . Hauler 1 | . . . . . . . . 1 . . . . . . . . . . . Recycler 5 | . . . . . . . . 1 . . . . . . . 2 . . 2 Operator 10 | . . . . . . . . 2 . 1 . 1 2 . 3 . . . 1 Watcher 5 | . . . . . . . . 1 . 2 . 1 1 . . . . . . Swarmer 45 | . 3 . 3 3 . 6 6 4 . . . 5 . 5 . 5 5 . . Cutter 2 | . . . . . . . . . . . . . 2 . . . . . . Grunt 6 | . . . . . . . . 1 . . . 1 1 . . . . 3 . Duelist 3 | . . . . . . . . . . . . . . . . . 2 1 . Researcher 1 | . . . . . . . . . . . . . . . . 1 . . . Hunter 4 | . . . . . . . . . . . . 1 . . . . . 2 1 Programmer 5 | . . . . . . . . . . 1 . . . . . . . . 4 Behemoth 1 | . . . . . . . . . . . . . . . . . 1 . . S7 Guard 1 | . . . . . . . . . . . . . . . . . 1 . . M Guard 2 | . . . . . . . . . . . . . . . . . . . 2 M Shell/Atk 2 | . . . . . . . . . . . . . . . . . . . 2 M Shell/Def 2 | . . . . . . . . . . . . . . . . . . . 2 Combat Programmer 2 | . . . . . . . . . . . . . . . . . . . 2 Best Kill Streak 11 | . 3 . 3 3 . 6 4 5 . 2 . 11 3 5 2 7 5 3 5 Combat Bots Only 6 | . 3 . 3 3 . 4 3 4 . 1 . 6 3 5 . 5 5 3 5 Max Kills in Single Turn 7 | . 1 . 1 1 . 3 4 2 . 1 . 7 3 3 1 4 1 1 1 Gunslinging . | . . . . . . . . . . . . . . . . . . . . Exploded 4 | . . . . . . 3 3 2 . . . 4 3 3 . 3 . . . Melee 1 | . . . . . . . . 1 . 1 . 1 . . . . 1 1 1 Uniques/NPCs Destroyed 2 | . . . . . . . . . . . . . . . . . . . 2 MAIN.C Shell (-1/Command) MAIN.C (-1/Command) Combat | -11 -10 -10 -9 -9 -9 -8 -8 -7 -7 -7 -6 -5 -4 -3 -2 -2 -2 -1 -1 -------- Run | Yrd Mat Min Mat Min Exi Min Mat Fac Was Fac Fac Fac Fac Res Res Qua Sec Acc Com Hostile Shots Fired 1287 | . 17 . 36 16 . 20 47 44 . 13 . 8 23 25 33 25 579 224 177 Missed 564 | . 3 . 24 5 . 13 26 26 . 8 . 2 9 11 14 11 277 83 52 Hits 723 | . 14 . 12 11 . 7 21 18 . 5 . 6 14 14 19 14 302 141 125 Melee 11 | . . . . . . . . . . . . . 2 . . . 7 2 . Projectile 712 | . 14 . 12 11 . 7 21 18 . 5 . 6 12 14 19 14 295 139 125 AOE 13 | . . . . . . . . . . . . . 1 . . . . . 12 Critical Strikes 29 | . 1 . 1 . . . . . . . . . 2 . 1 1 17 1 5 Damage Taken 4249 | . 123 . 72 70 . 68 187 140 . 43 . 75 282 256 377 266 1358 132 800 Core 1173 | . 67 . 38 13 . 16 77 12 . 23 . 27 71 57 54 61 376 45 236 Absorbed by Shields 1744 | . . . . . . . . . . . . . . . . . 737 154 853 Ignored by Resistances 9968 | . 31 . 25 22 . 23 57 43 . 14 . 23 80 69 104 69 4633 726 4049 Regen/Repaired (Parts) 13 | . . . . . . . . . . . . . . . . . 13 . . Core Remaining (%) 88 | 100 . 73 . . . 83 86 . . 95 100 97 93 95 . . 66 . 82 Volleys Fired 44 | . 4 . 7 8 . 6 3 4 . . . 2 3 4 . 3 . . . Largest 2 | . 2 . 2 2 . 1 1 1 . . . 1 1 1 . 1 . . . Hottest 60 | . 60 . 40 40 . 30 30 30 . . . 39 49 49 . 49 . . . Shots Fired 63 | . 8 . 14 16 . 6 3 4 . . . 2 3 4 . 3 . . . Gun 38 | . 8 . 14 16 . . . . . . . . . . . . . . . Cannon . | . . . . . . . . . . . . . . . . . . . . Launcher 25 | . . . . . . 6 3 4 . . . 2 3 4 . 3 . . . Special . | . . . . . . . . . . . . . . . . . . . . Kinetic 34 | . 4 . 14 16 . . . . . . . . . . . . . . . Thermal . | . . . . . . . . . . . . . . . . . . . . Explosive 25 | . . . . . . 6 3 4 . . . 2 3 4 . 3 . . . Electromagnetic 4 | . 4 . . . . . . . . . . . . . . . . . . Robot Hit Streak 6 | . 4 . 6 3 . . 1 5 . . . 6 . . . . . . . Robot Miss Streak 4 | . 1 . 2 4 . 2 3 . . . . . 1 . . 2 . . . Penetration Max . | . . . . . . . . . . . . . . . . . . . . Secondary Targets 3 | . 1 . 1 1 . . . . . . . . . . . . . . . Max Gunslinging Chain 1 | . 1 . 1 1 . . . . . . . . . . . . . . . Shots Hit Robots 204 | . 7 . 7 10 . . 1 20 . 16 . 7 9 . 10 4 22 13 78 Core Hits 137 | . 3 . 3 5 . 9 9 12 . 6 . 13 11 9 6 11 9 5 26 Critical Kills . | . . . . . . . . . . . . . . . . . . . . Critical Parts Destroyed . | . . . . . . . . . . . . . . . . . . . . Critical Strikes 13 | . 1 . . . . . . . . . . 1 . . . . . . 11 Corrupt 1 | . 1 . . . . . . . . . . . . . . . . . . Sever 12 | . . . . . . . . . . . . 1 . . . . . . 11 Melee Attacks 435 | . . . . . . . . 60 . 44 21 13 18 10 44 26 54 22 123 Impact . | . . . . . . . . . . . . . . . . . . . . Slashing 435 | . . . . . . . . 60 . 44 21 13 18 10 44 26 54 22 123 Piercing . | . . . . . . . . . . . . . . . . . . . . Sneak Attacks 34 | . . . . . . . . 8 . 7 . 3 3 . 5 4 1 1 2 Combat Hostiles 3 | . . . . . . . . 1 . . . 1 . . . . 1 . . Follow-up Attacks . | . . . . . . . . . . . . . . . . . . . . Damage Inflicted 27289 | . 134 . 79 90 . 282 423 1471 . 1245 . 1080 994 681 618 1106 3817 2325 12944 Guns 261 | . 92 . 79 90 . . . . . . . . . . . . . . . Cannons . | . . . . . . . . . . . . . . . . . . . . Explosions 3466 | . . . . . . 282 423 314 . . . 604 406 664 . 773 . . . Melee 23503 | . . . . . . . . 1157 . 1245 . 476 588 . 618 333 3817 2325 12944 Ramming 59 | . 42 . . . . . . . . . . . . 17 . . . . . Kinetic 217 | . 48 . 79 90 . . . . . . . . . . . . . . . Thermal 393 | . . . . . . . . . . . . 393 . . . . . . . Explosive 3073 | . . . . . . 282 423 314 . . . 211 406 664 . 773 . . . Electromagnetic 44 | . 44 . . . . . . . . . . . . . . . . . . Impact . | . . . . . . . . . . . . . . . . . . . . Slashing 23503 | . . . . . . . . 1157 . 1245 . 476 588 . 618 333 3817 2325 12944 Piercing . | . . . . . . . . . . . . . . . . . . . . Highest Corruption 1 | . . . . . . . . . . 1 . . . . . . . . . Average Corruption 1 | . . . . . . . . . . 1 . . . . . . . . . Corruption Purged . | . . . . . . . . . . . . . . . . . . . . Corruption Blocked . | . . . . . . . . . . . . . . . . . . . . Overload Shots . | . . . . . . . . . . . . . . . . . . . . Overflow Damage 4191 | . . . . . . 20 . 333 . 361 . 120 250 20 89 99 508 616 1775 Projectiles . | . . . . . . . . . . . . . . . . . . . . Explosions 176 | . . . . . . 20 . . . . . 54 43 20 . 39 . . . Melee 4015 | . . . . . . . . 333 . 361 . 66 207 . 89 60 508 616 1775 Knockbacks 1 | . 1 . . . . . . . . . . . . . . . . . . Impact 1 | . 1 . . . . . . . . . . . . . . . . . . Kinetic . | . . . . . . . . . . . . . . . . . . . . Secondary . | . . . . . . . . . . . . . . . . . . . . Self-Inflicted Damage 94 | . 20 . . . . 35 . . . . . . 31 8 . . . . . Shots 3 | . . . . . . 2 . . . . . . 1 . . . . . . Rammed 6 | . 5 . . . . . . . . . . . . 1 . . . . . Targets Rammed 6 | . 5 . . . . . . . . . . . . 1 . . . . . Kicked . | . . . . . . . . . . . . . . . . . . . . Crushed . | . . . . . . . . . . . . . . . . . . . . Highest Temperature 15 | . 15 . . . . . . . . . . . 3 . . . . . . Average Temperature 7 | . 8 . . . . . . . . . . . 3 . . . . . . Received Heat Transfer 526 | . 42 . . . . . 90 15 . . . . 27 9 36 27 117 31 132 Siege Activations . | . . . . . . . . . . . . . . . . . . . . Martial Activations . | . . . . . . . . . . . . . . . . . . . . Shielding Activations . | . . . . . . . . . . . . . . . . . . . . Robots Disrupted . | . . . . . . . . . . . . . . . . . . . . Combat Hostiles . | . . . . . . . . . . . . . . . . . . . . Robots Corrupted . | . . . . . . . . . . . . . . . . . . . . Combat Hostiles . | . . . . . . . . . . . . . . . . . . . . Parts Fried . | . . . . . . . . . . . . . . . . . . . . Impact Corruptions . | . . . . . . . . . . . . . . . . . . . . Robots Melted . | . . . . . . . . . . . . . . . . . . . . Combat Hostiles . | . . . . . . . . . . . . . . . . . . . . Parts Melted 2 | . . . . . . . . . . . . 2 . . . . . . . Heat Transferred 350 | . . . . . . . . . . . . 350 . . . . . . . Parts Sabotaged . | . . . . . . . . . . . . . . . . . . . . Parts Stolen . | . . . . . . . . . . . . . . . . . . . . Parts Stripped . | . . . . . . . . . . . . . . . . . . . . Power Chain Reactions . | . . . . . . . . . . . . . . . . . . . . Alert | -11 -10 -10 -9 -9 -9 -8 -8 -7 -7 -7 -6 -5 -4 -3 -2 -2 -2 -1 -1 ------- Run | Yrd Mat Min Mat Min Exi Min Mat Fac Was Fac Fac Fac Fac Res Res Qua Sec Acc Com Maximum Alert Level 5 | . . . . . . . 1 1 . . . 1 1 1 . 1 5 5 4 Low Security (%) 61 | 100 100 100 100 100 . 100 91 92 100 100 100 52 99 90 100 76 20 . . Level 1 5 | . . . . . . . 8 7 . . . 47 . 9 . 23 3 . . Level 2 . | . . . . . . . . . . . . . . . . . . . . Level 3 . | . . . . . . . . . . . . . . . . . . . . Level 4 22 | . . . . . . . . . . . . . . . . . . . 99 Level 5 1 | . . . . . . . . . . . . . . . . . . 27 . High Security . | . . . . . . . . . . . . . . . . . . . . Max Security 9 | . . . . . . . . . . . . . . . . . 75 72 . Peak Influence 3110 | . 90 23 143 96 . 178 229 254 71 82 30 264 227 216 97 246 3110 1812 1363 Initial 1632 | . . 23 . 46 . . 58 85 71 37 20 . 74 102 95 22 105 1632 1100 Average 395 | . 24 9 57 58 . 56 117 82 67 21 3 178 56 107 33 93 1686 1680 1230 Influence Increases 5835 | . 107 . 183 70 . 218 251 544 . 219 41 340 293 194 245 374 1762 220 774 Destroy 0b10 Robot/C 1760 | . 60 . 100 60 . 120 120 100 . 20 . 140 60 100 . 120 180 120 460 Destroy 0b10 Robot/NC 260 | . . . . . . 10 5 50 . 50 . 25 20 . 35 25 . 5 35 Destroy Leader 256 | . 10 . 30 10 . 20 10 14 . 14 . 22 12 10 . 10 10 10 74 Allied During Kill 36 | . . . 1 . . . . . . . . . . . . . . 7 28 Successful Hack 124 | . 7 . 7 . . . 35 7 . 4 4 . . 12 . 15 . . 33 Disable Machine 315 | . . . . . . . . 45 . . 18 72 27 18 . 18 90 18 9 Destroy Structure 699 | . . . . . . 38 21 43 . 26 19 66 144 54 90 81 27 15 75 Partial Spotted 240 | . . . . . . . 15 90 . 15 . 15 30 . 15 . 30 . 30 Lose Combat Pursuer 2145 | . 30 . 45 . . 30 45 195 . 90 . . . . 105 105 1425 45 30 Influence Decreases 5885 | . 37 70 40 137 76 40 210 519 183 230 90 165 242 225 394 205 191 1518 1313 Entered New Map 3437 | . . 47 . 97 76 . 120 134 173 24 30 1 102 125 101 25 111 1478 793 Time Decay 1951 | . 37 23 40 40 . 40 50 378 10 206 60 154 120 60 273 150 60 40 210 Lost Part 197 | . . . . . . . 40 7 . . . 10 20 40 20 30 20 . 10 Lost Ally 300 | . . . . . . . . . . . . . . . . . . . 300 Squads Dispatched 77 | . . . 1 . . . 2 9 . 1 3 4 6 . 5 3 25 13 5 Investigation 14 | . . . . . . . 1 3 . . 2 3 2 . 1 . 1 . 1 Extermination 14 | . . . . . . . . 4 . 1 1 1 1 . 3 1 1 . 1 Reinforcement 14 | . . . 1 . . . 1 2 . . . . 3 . 1 2 3 1 . Assault 35 | . . . . . . . . . . . . . . . . . 20 12 3 Garrison . | . . . . . . . . . . . . . . . . . . . . Intercept . | . . . . . . . . . . . . . . . . . . . . Searches Triggered . | . . . . . . . . . . . . . . . . . . . . Construction Impeded 1 | . . . . . . . . . . . . . . . . 1 . . . Haulers Reinforced 2 | . . . . . . . . . . . . . 1 . . . . 1 . Active Scanning Responses . | . . . . . . . . . . . . . . . . . . . . Cargo Convoy Interrupts . | . . . . . . . . . . . . . . . . . . . . Stealth | -11 -10 -10 -9 -9 -9 -8 -8 -7 -7 -7 -6 -5 -4 -3 -2 -2 -2 -1 -1 --------- Run | Yrd Mat Min Mat Min Exi Min Mat Fac Was Fac Fac Fac Fac Res Res Qua Sec Acc Com Distress Signals 39 | . 1 . 3 . . . 2 . . 1 . . . . 1 2 4 . 25 Communications Jammed . | . . . . . . . . . . . . . . . . . . . . Distress Signals . | . . . . . . . . . . . . . . . . . . . . Times Spotted 339 | . 10 . 18 3 . 12 21 28 5 13 . 6 13 6 16 16 127 15 30 Peak Tracking Total 40 | . 5 . 8 3 . 4 12 6 5 6 . 5 6 7 8 9 40 6 9 Tactical Retreats 40 | . 1 . 1 . . 1 1 8 . 3 . . . . 2 3 17 2 1 Traps | -11 -10 -10 -9 -9 -9 -8 -8 -7 -7 -7 -6 -5 -4 -3 -2 -2 -2 -1 -1 ------- Run | Yrd Mat Min Mat Min Exi Min Mat Fac Was Fac Fac Fac Fac Res Res Qua Sec Acc Com Traps Triggered 12 | . 1 . . . . . 1 2 . 1 . 3 . . 2 . 2 . . Indirectly . | . . . . . . . . . . . . . . . . . . . . Trap Hack Attempts . | . . . . . . . . . . . . . . . . . . . . Triggered . | . . . . . . . . . . . . . . . . . . . . Disarmed . | . . . . . . . . . . . . . . . . . . . . Reprogrammed . | . . . . . . . . . . . . . . . . . . . . Reused . | . . . . . . . . . . . . . . . . . . . . Traps Extracted . | . . . . . . . . . . . . . . . . . . . . Installed . | . . . . . . . . . . . . . . . . . . . . Triggered . | . . . . . . . . . . . . . . . . . . . . Machines | -11 -10 -10 -9 -9 -9 -8 -8 -7 -7 -7 -6 -5 -4 -3 -2 -2 -2 -1 -1 ---------- Run | Yrd Mat Min Mat Min Exi Min Mat Fac Was Fac Fac Fac Fac Res Res Qua Sec Acc Com Machines Disabled 37 | . . . . . . . . 5 . . 2 8 3 2 . 3 11 2 1 Max in Single Turn 7 | . . . . . . . . 1 . . 1 7 2 1 . 1 1 1 . Garrison Access 3 | . . . . . . . . . . 1 1 . . 1 . . . . . Phase Generator 1 | . . . . . . . . . . . . . . . . . . . 1 Machines Repaired . | . . . . . . . . . . . . . . . . . . . . Machines Dismantled . | . . . . . . . . . . . . . . . . . . . . Machines Sabotaged . | . . . . . . . . . . . . . . . . . . . . Overloaded Fab Kills . | . . . . . . . . . . . . . . . . . . . . Hacking | -11 -10 -10 -9 -9 -9 -8 -8 -7 -7 -7 -6 -5 -4 -3 -2 -2 -2 -1 -1 --------- Run | Yrd Mat Min Mat Min Exi Min Mat Fac Was Fac Fac Fac Fac Res Res Qua Sec Acc Com Machines Accessed 47 | . 1 . 1 . 1 . 4 7 . 3 8 3 3 2 4 6 . . 4 Terminals 33 | . 1 . 1 . . . 4 4 . 1 5 1 2 1 3 6 . . 4 Fabricators 10 | . . . . . . . . 3 . 1 2 2 1 . 1 . . . . Repair Stations . | . . . . . . . . . . . . . . . . . . . . Recycling Units . | . . . . . . . . . . . . . . . . . . . . Scanalyzers . | . . . . . . . . . . . . . . . . . . . . Garrison Access 3 | . . . . . . . . . . 1 1 . . 1 . . . . . Total Hacks 108 | . 2 . 3 . 1 . 12 12 . 11 19 11 10 4 9 9 . . 5 Successful 74 | . 1 . 1 . 1 . 4 7 . 9 13 10 8 3 7 6 . . 4 Failed 33 | . 1 . 2 . . . 8 5 . 2 5 1 2 1 2 3 . . 1 Catastrophic 5 | . . . . . . . 2 3 . . . . . . . . . . . Database Lockouts 1 | . . . . . . . . . . . 1 . . . . . . . . Manual 74 | . 2 . 3 . 1 . 12 9 . 2 14 6 8 1 6 8 . . 2 Terminals 69 | . 2 . 3 . . . 12 6 . 1 12 4 7 2 6 9 . . 5 Fabricators 32 | . . . . . . . . 6 . 7 6 7 3 . 3 . . . . Repair Stations . | . . . . . . . . . . . . . . . . . . . . Recycling Units . | . . . . . . . . . . . . . . . . . . . . Scanalyzers . | . . . . . . . . . . . . . . . . . . . . Garrison Access 6 | . . . . . . . . . . 3 1 . . 2 . . . . . Terminal Hacks 35 | . 1 . 1 . 1 . 2 1 . 1 7 3 5 2 4 5 . . 2 Part Schematic 4 | . . . . . . . 1 . . . 2 1 . . . . . . . Open Door 2 | . . . . . . . . . . . . . . . 1 . . . 1 Level Access Points 4 | . . . . . . . 1 . . . 1 . 1 1 . . . . . Branch Access Points 4 | . 1 . 1 . . . . . . . . . . 1 1 . . . . Machine Index 2 | . . . . . . . . . . . 1 . 1 . . . . . . Fabricator Index 3 | . . . . . . . . 1 . 1 1 . . . . . . . . Recall Investigation 5 | . . . . . . . . . . . 2 2 1 . . . . . . Recall Extermination 4 | . . . . . . . . . . . . . 1 . 2 1 . . . Recall Reinforcements 1 | . . . . . . . . . . . . . 1 . . . . . . Zone Layout 4 | . . . . . . . . . . . . . . . . 4 . . . Proto ID Catalog 1 | . . . . . 1 . . . . . . . . . . . . . . Disengage Seal 1 | . . . . . . . . . . . . . . . . . . . 1 Fabricator Hacks 22 | . . . . . . . . 3 . 6 4 5 2 . 2 . . . . Network Status 1 | . . . . . . . . . . . . 1 . . . . . . . Load Schematic 12 | . . . . . . . . 3 . 3 2 2 1 . 1 . . . . Build 9 | . . . . . . . . . . 3 2 2 1 . 1 . . . . Repair Station Hacks . | . . . . . . . . . . . . . . . . . . . . Recycling Unit Hacks . | . . . . . . . . . . . . . . . . . . . . Scanalyzer . | . . . . . . . . . . . . . . . . . . . . Garrison Access Hacks 3 | . . . . . . . . . . 1 1 . . 1 . . . . . Seal Access 3 | . . . . . . . . . . 1 1 . . 1 . . . . . Unauthorized Hacks 14 | . . . . . . . 2 3 . 1 1 2 1 . 1 1 . . 2 Terminals 5 | . . . . . . . 2 . . . . . . . . 1 . . 2 Track 1 | . . . . . . . . . . . . . . . . 1 . . . Botnet 4 | . . . . . . . 2 . . . . . . . . . . . 2 Fabricators 9 | . . . . . . . . 3 . 1 1 2 1 . 1 . . . . Prioritize 6 | . . . . . . . . . . 1 1 2 1 . 1 . . . . Recompile 3 | . . . . . . . . 3 . . . . . . . . . . . Repair Stations . | . . . . . . . . . . . . . . . . . . . . Recycling Units . | . . . . . . . . . . . . . . . . . . . . Scanalyzers . | . . . . . . . . . . . . . . . . . . . . Garrison Access . | . . . . . . . . . . . . . . . . . . . . Data Cores Recovered 6 | . . . . . . . . 1 . 1 . . 1 . 2 . . . 1 Used 4 | . . . . . . . . 1 . 1 . . . . 1 . . . 1 Hacking Detections 27 | . . . 1 . . . 2 4 . . 3 3 3 2 3 5 . . 1 Full Trace Events 9 | . . . 1 . . . 1 . . . 2 2 2 . 1 . . . . Feedback Events . | . . . . . . . . . . . . . . . . . . . . Feedback Blocked . | . . . . . . . . . . . . . . . . . . . . Robot Schematics Acquired . | . . . . . . . . . . . . . . . . . . . . Robots Built . | . . . . . . . . . . . . . . . . . . . . Authchips . | . . . . . . . . . . . . . . . . . . . . Time . | . . . . . . . . . . . . . . . . . . . . Total Robot Build Rating . | . . . . . . . . . . . . . . . . . . . . Part Schematics Acquired 7 | . . . . . . . 1 . . . 2 1 . . . 3 . . . Parts Built 10 | . . . . . . . . . . 3 3 2 1 . 1 . . . . Authchips 3 | . . . . . . . . . . 3 . . . . . . . . . Time 364 | . . . . . . . . . . 108 100 111 26 . 19 . . . . Total Part Build Rating 51 | . . . . . . . . . . 9 16 13 6 . 7 . . . . Parts Repaired . | . . . . . . . . . . . . . . . . . . . . Time . | . . . . . . . . . . . . . . . . . . . . Parts Recycled . | . . . . . . . . . . . . . . . . . . . . Recycled Matter . | . . . . . . . . . . . . . . . . . . . . Retrieved Matter . | . . . . . . . . . . . . . . . . . . . . Retrieved Components . | . . . . . . . . . . . . . . . . . . . . Parts Scanalyzed . | . . . . . . . . . . . . . . . . . . . . Part Schematics Acquired . | . . . . . . . . . . . . . . . . . . . . Parts Damaged . | . . . . . . . . . . . . . . . . . . . . Bothacking | -11 -10 -10 -9 -9 -9 -8 -8 -7 -7 -7 -6 -5 -4 -3 -2 -2 -2 -1 -1 ------------ Run | Yrd Mat Min Mat Min Exi Min Mat Fac Was Fac Fac Fac Fac Res Res Qua Sec Acc Com Used RIF Installer . | . . . . . . . . . . . . . . . . . . . . Robots Hacked . | . . . . . . . . . . . . . . . . . . . . Non-combat . | . . . . . . . . . . . . . . . . . . . . Combat . | . . . . . . . . . . . . . . . . . . . . Robot Hacks Applied . | . . . . . . . . . . . . . . . . . . . . Relay Couplers Released . | . . . . . . . . . . . . . . . . . . . . Fabnet Peak Effective % . | . . . . . . . . . . . . . . . . . . . . Robots Rewired . | . . . . . . . . . . . . . . . . . . . . Allies Hacked . | . . . . . . . . . . . . . . . . . . . . Hacks Repelled . | . . . . . . . . . . . . . . . . . . . . Allies | -11 -10 -10 -9 -9 -9 -8 -8 -7 -7 -7 -6 -5 -4 -3 -2 -2 -2 -1 -1 -------- Run | Yrd Mat Min Mat Min Exi Min Mat Fac Was Fac Fac Fac Fac Res Res Qua Sec Acc Com Total Allies 60 | . . 1 . . . . . . 1 . . . . . . . . 14 44 Largest Group 10 | . . 1 1 . . . . . 1 . . . . . . . . 8 10 Highest-Rated Group 362 | . . 31 31 . . . . . 31 . . . . . . . . 114 362 Highest-Rated Ally 234 | . . 31 31 . . . . . 31 . . . . . . . . 15 234 Total Orders . | . . . . . . . . . . . . . . . . . . . . Ally Attacks 131 | . . . 21 . . . . . 8 . . . . . . . . 10 92 Total Damage 3099 | . . . 235 . . . . . 148 . . . . . . . . 148 2568 Kills 15 | . . . 2 . . . . . . . . . . . . . . . 13 Allies Corrupted 1 | . . . . . . . . . . . . . . . . . . . 1 Allies Melted . | . . . . . . . . . . . . . . . . . . . . Intel | -11 -10 -10 -9 -9 -9 -8 -8 -7 -7 -7 -6 -5 -4 -3 -2 -2 -2 -1 -1 ------- Run | Yrd Mat Min Mat Min Exi Min Mat Fac Was Fac Fac Fac Fac Res Res Qua Sec Acc Com Active Infowar (turns) 3469 | . . . . . . . . 573 28 680 345 348 253 126 698 303 115 . . Sensors 2912 | . . . . . . . . 187 28 680 345 348 253 126 637 254 54 . . Terrain 288 | . . . . . . . . 3 . . . . . . 238 47 . . . Structural 2804 | . . . . . . . . 571 28 678 345 348 253 98 65 303 115 . . Robot Analysis Total . | . . . . . . . . . . . . . . . . . . . . Derelict Logs Recovered . | . . . . . . . . . . . . . . . . . . . . Drone Launches . | . . . . . . . . . . . . . . . . . . . . Drone Recoveries . | . . . . . . . . . . . . . . . . . . . . Exploration | -11 -10 -10 -9 -9 -9 -8 -8 -7 -7 -7 -6 -5 -4 -3 -2 -2 -2 -1 -1 ------------- Run | Yrd Mat Min Mat Min Exi Min Mat Fac Was Fac Fac Fac Fac Res Res Qua Sec Acc Com Turns Passed 6631 | 16 183 76 92 82 85 138 104 793 28 680 345 348 253 126 701 303 523 301 1454 Spaces Moved 9708 | 25 313 136 170 157 219 338 275 1565 78 857 656 487 497 254 787 585 1063 293 953 Core 522 | 25 313 136 48 . . . . . . . . . . . . . . . . Treads . | . . . . . . . . . . . . . . . . . . . . Legs 2029 | . . . . . . . . . . . . . . . . . 783 293 953 Wheels . | . . . . . . . . . . . . . . . . . . . . Hover . | . . . . . . . . . . . . . . . . . . . . Flight 7157 | . . . 122 157 219 338 275 1565 78 857 656 487 497 254 787 585 280 . . Fastest Speed 30 | 50 50 50 37 37 37 34 34 32 32 32 32 37 34 34 34 35 30 30 30 Average Speed 34 | 50 50 50 40 37 37 34 34 34 32 32 34 37 35 34 35 35 31 30 30 Slowest Speed 120 | 50 100 50 50 37 37 37 37 40 32 32 120 37 37 34 37 45 35 30 30 Overloaded Moves . | . . . . . . . . . . . . . . . . . . . . Propulsion Burnouts . | . . . . . . . . . . . . . . . . . . . . Robots Hopped 54 | . . . 4 3 . 12 8 2 . . . . 10 . 8 . 7 . . Potential Cave-ins 7 | . . . . . . . . . . . . . . . . . 7 . . Cave-ins Triggered . | . . . . . . . . . . . . . . . . . . . . Exploration Rate (%) 36 | 2 71 43 25 28 61 80 33 56 68 27 17 13 17 10 19 62 73 10 22 Regions Visited 19 Branch Regions 7 Pre-discovered Areas . | . . . . . . . . . . . . . . . . . . . . Known Exits Taken 10 | . 1 . 1 . . . 1 . . 1 1 1 1 1 1 1 . . . Unknown Exits Taken 7 | 1 . 1 . 1 1 1 . . . . . . . . . . 1 1 . Scrap Searched 2 | . . . . 1 . 1 . . . . . . . . . . . . . Spaces Dug 174 | . . . . . . . . 35 . 26 19 6 9 9 31 16 8 5 10 Terrain Destroyed 412 | . . . . . . 59 17 48 . 26 19 32 93 36 31 28 8 5 10 Melee 174 | . . . . . . . . 35 . 26 19 6 9 9 31 16 8 5 10 Projectile . | . . . . . . . . . . . . . . . . . . . . AOE 238 | . . . . . . 59 17 13 . . . 26 84 27 . 12 . . . Terrain Rammed . | . . . . . . . . . . . . . . . . . . . . Walls Destroyed . | . . . . . . . . . . . . . . . . . . . . Machines Disabled . | . . . . . . . . . . . . . . . . . . . . Actions | -11 -10 -10 -9 -9 -9 -8 -8 -7 -7 -7 -6 -5 -4 -3 -2 -2 -2 -1 -1 --------- Run | Yrd Mat Min Mat Min Exi Min Mat Fac Was Fac Fac Fac Fac Res Res Qua Sec Acc Com Total 12238 | 27 329 143 174 162 222 338 272 1719 80 1184 757 638 530 271 1121 633 1144 475 2019 Wait 1888 | . 2 6 . 1 . 3 . 54 3 253 66 104 16 . 279 10 1 158 932 Move 9587 | 24 312 135 161 150 218 317 258 1561 77 856 655 486 476 254 771 584 1048 292 952 Hop 49 | . . . 4 3 . 8 8 2 . . . . 10 . 7 . 7 . . Pick Up 31 | 3 3 1 . . 2 . . 5 . 2 4 . 1 . 3 1 4 1 1 Fast Attach 66 | . . . 2 . . 1 1 10 . 3 2 4 3 2 10 4 16 1 7 Attach 24 | . 2 1 . . 1 . . 4 . 2 2 1 1 1 3 2 3 . 1 Detach 12 | . 1 . . . . . . 2 . . . 2 . . 1 1 3 1 1 Swap 17 | . . . . . . 2 1 3 . 5 1 2 1 . 1 . 1 . . Drop 38 | . . . . . 1 1 1 7 . 6 6 2 1 . 2 2 7 . 2 Fire 44 | . 4 . 7 8 . 6 3 4 . . . 2 3 4 . 3 . . . Melee 435 | . . . . . . . . 60 . 44 21 13 18 10 44 26 54 22 123 Ram 5 | . 5 . . . . . . . . . . . . . . . . . . Kick . | . . . . . . . . . . . . . . . . . . . . Crush . | . . . . . . . . . . . . . . . . . . . . Escape Stasis 42 | . . . . . . . . 7 . 13 . 22 . . . . . . . Rewire . | . . . . . . . . . . . . . . . . . . . . Trap . | . . . . . . . . . . . . . . . . . . . . Miscellaneous . | . . . . . . . . . . . . . . . . . . . . Route ------- -11/Scrapyard -10/Materials (discovered 4 exits: *Mat x2 / *Min x2) -10/Mines -9/Materials (discovered 2 exits: *Min x2) -9/Mines (discovered 2 exits: *Mat / *Exi) -9/Exiles -8/Mines -8/Materials (discovered 4 exits: *Fac x3 / [*Sto]) -7/Factory (discovered 4 exits: *Fac x3 / *Low) -7/Waste -7/Factory (discovered 4 exits: *Fac x2 / *Low x2) -6/Factory (discovered 4 exits: *Fac x4) -5/Factory -4/Factory (discovered 4 exits: *Res x4) -3/Research (discovered 5 exits: *Res x3 / Tes x2) -2/Research (discovered 2 exits: *Qua x2) -2/Quarantine (discovered 2 exits: *Sec / [*Frg]) -2/Section 7 -1/Access -1/Command (discovered 2 exits: [*Sur x2]) To Fleet Rendezvous History --------- Turn | Location | Event 5 | -11/Scrapyard | Discovered new exit (range 16) 17 | -11/Scrapyard | Entered Materials 24 | -10/Materials | Identified exit to Mines 51 | -10/Materials | Discovered new exit (range 12) 136 | -10/Materials | Discovered new exit (range 5) 200 | -10/Materials | Entered Mines 257 | -10/Mines | Received a Rocket Launcher from a helpful Derelict 268 | -10/Mines | Discovered new exit (range 5) 272 | -10/Mines | Received a Mining Laser from a helpful Derelict 276 | -10/Mines | Entered Materials 276 | -9/Materials | Accompanied by 1 ally 276 | -9/Materials | Evolved 2 slots: Propulsion x1, Utility x1 283 | -9/Materials | Identified exit to Mines 301 | -9/Materials | Build established: Mutant 368 | -9/Materials | Entered Mines 378 | -9/Mines | Discovered new exit (range 16) 448 | -9/Mines | Deemed a non-threat by the Exiles lab entrance 448 | -9/Mines | Discovered new exit (range 5) 450 | -9/Mines | Entered Exiles 459 | -9/Exiles | Met 8R-AWN 466 | -9/Exiles | Met EX-HEX 476 | -9/Exiles | Met EX-BIN 480 | -9/Exiles | Aligned with FarCom system 481 | -9/Exiles | Given EX-Vault access code 490 | -9/Exiles | Opened EX-Vault 494 | -9/Exiles | Found Longsword +1 497 | -9/Exiles | Found Chronowheel 505 | -9/Exiles | Warned to stay clear of 0b10 Research branches 510 | -9/Exiles | Exiles lab attacked by MAIN.C 532 | -9/Exiles | Discovered new exit (range 10) 535 | -9/Exiles | Stole two prototypes: Chronowheel, Longsword +1 535 | -9/Exiles | Entered Mines 669 | -8/Mines | Discovered new exit (range 11) 673 | -8/Mines | Entered Materials 673 | -8/Materials | Evolved 2 slots: Utility x2 702 | -8/Materials | Identified exit to Factory 747 | -8/Materials | Discovered new exit (range 10) 777 | -8/Materials | Entered Factory 777 | -7/Factory | Evolved 2 slots: Utility x2 779 | -7/Factory | FarCom data flow suspended 806 | -7/Factory | Lost 4 parts (1p1n2w) 820 | -7/Factory | Discovered new exit (range 8) 1067 | -7/Factory | Discovered new exit (range 6) 1239 | -7/Factory | Build established: Hacker-Mutant 1240 | -7/Factory | Discovered new exit (range 16) 1455 | -7/Factory | Discovered new exit (range 16) 1570 | -7/Factory | Manually triggered Chute Trap 1570 | -7/Factory | Sucked down chute 1570 | -7/Factory | Entered Waste 1571 | -7/Waste | Met a frightened Derelict 1573 | -7/Waste | Spotted C-40 Crusher 1574 | -7/Waste | Spotted C-40 Crusher 1580 | -7/Waste | Spotted C-40 Crusher 1582 | -7/Waste | Spotted C-40 Crusher 1588 | -7/Waste | Spotted C-40 Crusher 1590 | -7/Waste | Spotted C-40 Crusher 1590 | -7/Waste | Discovered new exit (range 12) 1598 | -7/Waste | Identified exit to Factory 1598 | -7/Waste | Entered Factory 1686 | -7/Factory | Build established: Hacker-Scout 2075 | -7/Factory | Discovered new exit (range 11) 2075 | -7/Factory | Discovered new exit (range 7) 2122 | -7/Factory | Discovered new exit (range 11) 2129 | -7/Factory | Identified exit to Lower Caves 2153 | -7/Factory | Discovered new exit (range 14) 2191 | -7/Factory | Fabricated Hacking Suite? 2231 | -7/Factory | Fabricated Hacking Suite? 2273 | -7/Factory | Fabricated Hacking Suite (x1) 2278 | -7/Factory | Identified exit to Factory 2278 | -7/Factory | Entered another Factory area 2278 | -6/Factory | Evolved 2 slots: Utility x2 2358 | -6/Factory | Fabricated Adv. Sensor Array (x2) 2494 | -6/Factory | Fabricated Nuclear Pulse Array? 2541 | -6/Factory | Central database locked down 2587 | -6/Factory | Build established: Wizard-Scout 2608 | -6/Factory | Identified exit to Factory 2623 | -6/Factory | Entered another Factory area 2623 | -5/Factory | Evolved 2 slots: Propulsion x1, Utility x1 2716 | -5/Factory | Fabricated Micro-nuke Launcher (x1) 2784 | -5/Factory | Discovered new exit (range 11) 2788 | -5/Factory | Identified exit to Factory 2890 | -5/Factory | Fabricated Nuclear Pulse Array? 2971 | -5/Factory | Entered another Factory area 2971 | -4/Factory | Evolved 2 slots: Propulsion x2 2987 | -4/Factory | Identified exit to Research 3136 | -4/Factory | Fabricated Nuclear Pulse Array (x1) 3224 | -4/Factory | Entered Research 3224 | -3/Research | Evolved 2 slots: Utility x2 3307 | -3/Research | Identified exit to Testing 3307 | -3/Research | Identified exit to Research 3350 | -3/Research | Entered another Research area 3350 | -2/Research | Evolved 2 slots: Power x1, Utility x1 3381 | -2/Research | Lost 4 parts (3u1w) 3625 | -2/Research | Identified exit to Quarantine 3626 | -2/Research | Build established: Wizard-Mutant 3731 | -2/Research | Fabricated Micro-nuke Launcher (x1) 4051 | -2/Research | Entered Quarantine 4121 | -2/Quarantine | Build established: Wizard-Scout 4240 | -2/Quarantine | Found Alien Artifact 4240 | -2/Quarantine | Identified Core Reset Matrix 4240 | -2/Quarantine | Used Core Reset Matrix 4244 | -2/Quarantine | Detected hypermatrix surge 4244 | -2/Quarantine | Sensed 15 artifacts in vicinity 4253 | -2/Quarantine | Found Sigix Broadsword 4329 | -2/Quarantine | Spotted Fortress 4353 | -2/Quarantine | Discovered new exit (range 5) 4353 | -2/Quarantine | Discovered new exit (range 6) 4354 | -2/Quarantine | Identified exit to Section 7 4354 | -2/Quarantine | Entered Section 7 4355 | -2/Section 7 | Detected hypermatrix surge 4355 | -2/Section 7 | Sensed 21 artifacts in vicinity 4397 | -2/Section 7 | Spotted B-90 Cyclops 4417 | -2/Section 7 | Spotted Alpha 7 4418 | -2/Section 7 | Spotted Alpha 7 4427 | -2/Section 7 | Spotted B-99 Colossus 4469 | -2/Section 7 | Integrated with Sigix Exoskeleton 4495 | -2/Section 7 | Destroyed B-99 Colossus 4527 | -2/Section 7 | Found Terrabomb 4528 | -2/Section 7 | Found Terrabomb 4531 | -2/Section 7 | Spotted Executioner 4531 | -2/Section 7 | Spotted Executioner 4557 | -2/Section 7 | Found Integrated Dissipator 4557 | -2/Section 7 | Installed Integrated Dissipator, increased core heat dissipation (+20) 4558 | -2/Section 7 | Found Integrated Dissipator 4558 | -2/Section 7 | Installed Integrated Dissipator, increased core heat dissipation (+20) 4575 | -2/Section 7 | Found LRC Storage 4575 | -2/Section 7 | Installed LRC Storage, increased inventory capacity (+2) 4579 | -2/Section 7 | Found LRC Matter Compressor 4579 | -2/Section 7 | Installed LRC Matter Compressor, increased matter storage capacity (+125) 4581 | -2/Section 7 | Found LRC Energy Well 4581 | -2/Section 7 | Installed LRC Energy Well, increased energy storage capacity (+250) 4603 | -2/Section 7 | Used Terrabomb 4646 | -2/Section 7 | Discovered new exit (range 17) 4672 | -2/Section 7 | Found Spacefold Activator 4724 | -2/Section 7 | Found Integrated Mediator 4724 | -2/Section 7 | Installed Integrated Mediator, increased core attachment efficiency 4746 | -2/Section 7 | Spotted S7 Guard 4748 | -2/Section 7 | Destroyed S7 Guard 4757 | -2/Section 7 | Found Core Membrane 4757 | -2/Section 7 | Installed Core Membrane, gained immunity to corruption 4776 | -2/Section 7 | Sigix Exoskeleton integrity reduced to 80% 4778 | -2/Section 7 | Build established: Alien-Sigix 4783 | -2/Section 7 | Found Integrated Dissipator 4783 | -2/Section 7 | Installed Integrated Dissipator, increased core heat dissipation (+20) 4877 | -2/Section 7 | Entered Access 4877 | -1/Access | Evolved 2 slots: Utility x2 4882 | -1/Access | Emitted hypermatrix ping 4887 | -1/Access | Assembled emerged from beneath the floor 4955 | -1/Access | Assembled emerged from beneath the floor 4979 | -1/Access | Spotted B-99 Colossus 4994 | -1/Access | Discovered new exit (range 18) 5000 | -1/Access | Spotted B-99 Colossus 5000 | -1/Access | Spotted B-99 Colossus 5178 | -1/Access | Entered Command 5183 | -1/Command | Emitted hypermatrix ping 5188 | -1/Command | Assembled emerged from beneath the floor 5219 | -1/Command | Found Unknown Launcher 5223 | -1/Command | Identified Gamma Bomb Array 5232 | -1/Command | Disengaged cave seal 5232 | -1/Command | Assembled emerged from the dark tunnel 5260 | -1/Command | Assembled emerged from beneath the floor 5306 | -1/Command | Spotted M Guard 5306 | -1/Command | Spotted M Guard 5306 | -1/Command | Spotted Combat Programmer 5319 | -1/Command | Spotted Combat Programmer 5320 | -1/Command | Destroyed Combat Programmer 5325 | -1/Command | Destroyed Combat Programmer 5369 | -1/Command | Destroyed M Guard 5374 | -1/Command | Destroyed M Guard 5374 | -1/Command | All MAIN.C guards destroyed 5390 | -1/Command | Lost 3 allies 5407 | -1/Command | Met MAIN.C 5428 | -1/Command | First assault squad dispatched 5615 | -1/Command | MAIN.C's shell transforms into a squad of autonomous robots 5615 | -1/Command | Destroyed MAIN.C Shell 5615 | -1/Command | Spotted M Shell/Def 5615 | -1/Command | Spotted M Shell/Atk 5615 | -1/Command | Spotted M Shell/Def 5615 | -1/Command | Spotted M Shell/Atk 5615 | -1/Command | Spotted M Shell/Atk 5615 | -1/Command | Spotted M Shell/Def 5615 | -1/Command | Spotted M Shell/Atk 5615 | -1/Command | Spotted M Shell/Def 5617 | -1/Command | MAIN.C activated Command garrisons 5663 | -1/Command | Destroyed MAIN.C 5664 | -1/Command | Discovered new exit (range 137) 5664 | -1/Command | Discovered new exit (range 64) 5664 | -1/Command | Extracted map data and part IDs from MAIN.C's data core 5749 | -1/Command | Phase Generator disabled 5786 | -1/Command | Destroyed M Shell/Atk 5806 | -1/Command | Destroyed M Shell/Atk 5813 | -1/Command | Destroyed M Shell/Def 5818 | -1/Command | Destroyed M Shell/Def 5863 | -1/Command | 0b10 Conduit disabled 6632 | *** | Heading to fleet! Last Messages --------------- Acquired 4 matter. Detected hypermatrix ping. Acquired Imp. Hacking Suite. M Shell/Atk Med. Regenerative Plating severed. M Shell/Atk Rnf. Quantum Reactor severed. M Shell/Atk destroyed. K-01 Serf collects debris. M Shell/Atk Med. Regenerative Plating severed. K-01 Serf collects debris. M Shell/Def knocked back. M Shell/Atk Med. Regenerative Plating severed. Destroyed Exp. Matter Compressor. Destroyed Exp. Energy Well. M Shell/Atk destroyed. Acquired 5 matter. K-01 Serf collects debris. M Shell/Def destroyed. K-01 Serf collects debris. M Shell/Def destroyed. K-01 Serf collects debris. Map ----- +----------------------------------------------------+ | #??????????#= #?????????????????????? | | #??????????# #?????????????????????? | | "" #?????????#######+####?????????????????????? | | """"#?????????# #????????????????????????? | | """"########### #########################??????? | | "" # # #???# !!= # #??????? | | # # ##### !== # #??????? | | + # ##### !== # =#??????? | | ##/#### # #####= # #??????? | | ###+##+##### +% + #??????? | | ^ ##### #####= # #??????? | | ^ ##### ###########+####### #??????? | | ########## + #??????? | | ##### ########## ####### #??????? | | #########+########## ####### #??????? | | # # ####### ####### ##?????? | | #^ # #### # #########+########## | | # ^ # """" ####### =[ | | # # """" + [%* | | # # """" ############+#### ####""" | | + = # = """" ######### # ####""" | | # + *%! = ######### # #[[[ | | # ###### !%[ ### ##### "" + #]][ [ | | # #??### !! ###;##### """ # #!!! | | # #??### =% ### ## R" # #!!!**= | | #??### *! ##; X ## """ # ####### | | #???## !%= ### ## # ####### | | +##########+############## ;# # ####### | | ########### ## # ####### | | ########### ## # ####### | | ########### ########## ####### | | "" ########### ########## ####### | | """#### == # ####### | | T"#### == # ####### | | """#### # ####### | | !!! "" #### # = ####### | | !!! ####! + =% ####### | | !!! #### # "" =%[ ####### | | ############# ############ """ = ####### | | [ ################ """" #####"" | | ! + "" #####"" | | # #####"" | | # #####"" | | ""Y"" # #####" | | """"" # #####"" | | # #####"" | | !# !! ##### " | | ##+##+#### !! ##### " | | ?# #??# ##### " | | ?# #### """ """ #####"" | +----------------------------------------------------+ Best States ------------- Heat Dissipation 182 Coolant Potential 100 Energy Generation 67 Energy Capacity 700 Matter Stores 425 Matter Capacity 425 Sight Range 16 Robot Scan Range 16 Terrain Scan Range 14 Terrain Scan Density 85 Resistance: KI 70 Resistance: TH 70 Resistance: EX 70 Resistance: EM 70 Resistance: I 70 Resistance: S 70 Resistance: P 70 Point Defense Rating 80 Melee Speed Boost 40 Evasion (%) 81 Offensive Hacking 90 Defensive Hacking 12 Authchip Count 3 Item Schematics ----------------- None Robot Schematics ------------------ None Fabricated ------------ Hacking Suite | x1 | -7/Factory | Authchip Hacking Suite | x1 | -7/Factory | Authchip Hacking Suite | x1 | -7/Factory | Authchip Adv. Sensor Array | x2 | -6/Factory Nuclear Pulse Array | x1 | -6/Factory Micro-nuke Launcher | x1 | -5/Factory Nuclear Pulse Array | x1 | -5/Factory Nuclear Pulse Array | x1 | -4/Factory Micro-nuke Launcher | x1 | -2/Research Repaired ---------- Nothing Alien Tech Used ----------------- Core Reset Matrix Sigix Broadsword Sigix Exoskeleton Sigix Sheargun Integrated Dissipator LRC Storage LRC Matter Compressor LRC Energy Well Terrabomb Integrated Mediator Core Membrane Achievements -------------- None Challenges ------------ None Game ------ Seed PersonalRagnarokMace Manual? 0 Play Time 01:24:43 Cumulative 189.4 hours Start 2025.05.22 @ 21:06:47 End 2025.05.23 @ 15:14:50 Sessions 7 Manual Loads 0 Difficulty Adventurer Special Mode None Game No. 188 Rogue 18 Adventurer 159 Explorer 11 Win Type 2 Total 48 Types 13/0/14/2/9/0/4/1/0/5 Lore% 47 Gallery% 47 Achievement% 67 Wizard Run 0 Options --------- Layout 0 ASCII 0 Keyboard 0 Movement Numpad Keybinds 0 Fullscreen 2 Font 12/Smallcaps Map View 83x54 Zoom Use 0% Tactical HUD 0 Map Filters NONE Filters NONE Steam X RUN: 9f4f571d-9554-40a7-bc01-ce91262e25d3